Cogmind - Beta 14 @@@ ROGUE MODE // 2024.08.29 @ 09:30:44 Player: Smile Result: Destroyed by G-47 Trooper with Particle Gun Performance ------------- Evolutions (0) 0 Regions Visited (1) 200 Robots Destroyed (10) 50 Value Destroyed (194) 194 Prototype IDs (0) 0 Alien Tech Used (0) 0 Bonus (0) 0 TOTAL SCORE: 444 Bonus ------- None Cogmind --------- Core Integrity 0/250 Matter 398/400 Energy 97/100 System Corruption 0% Temperature Cool (61) Movement Core (50) Location -10/Materials Parts ------- > --- POWER (1) -------- (None) > --- PROPULSION (2) --- (None) > --- UTILITY (2) ------ Medium Matter Pod > --- WEAPON (2) ------- (None) > --- INVENTORY (5) ---- Light Ion Engine Aluminum Leg Grenade Launcher Peak State ------------ > --- POWER ------------ Light Ion Engine > --- PROPULSION ------- Aluminum Leg Aluminum Leg > --- UTILITY ---------- Medium Matter Pod Improved Terrain Scanner > --- WEAPON ----------- Small Laser Light Assault Rifle > --- INVENTORY -------- Light Ion Engine Wheel Wheel Light Assault Rifle [Rating: 9] Favorites ----------- Power Light Ion Engine Engine Light Ion Engine Propulsion Aluminum Leg Leg Aluminum Leg Wheel Wheel Utility Medium Matter Pod Device Seismic Detector Storage Medium Matter Pod Weapon Light Assault Rifle Energy Gun Small Laser Ballistic Gun Light Assault Rifle Build | -11 -10 ------- Run | Yrd Mat Slots Evolved . | . . Power . | . . Propulsion . | . . Utility . | . . Weapon . | . . Parts Attached 15 | 11 4 Power 1 | 1 . Engine 1 | 1 . Core . | . . Reactor . | . . Propulsion 6 | 6 . Treads . | . . Leg 4 | 4 . Wheel 2 | 2 . Hover . | . . Flight . | . . Utility 3 | 2 1 Device 2 | 1 1 Storage 1 | 1 . Processor . | . . Hackware . | . . Protection . | . . Artifact . | . . Weapon 5 | 2 3 Energy Gun 3 | 1 2 Energy Cannon . | . . Ballistic Gun 2 | 1 1 Ballistic Cannon . | . . Launcher . | . . Special Weapon . | . . Impact Weapon . | . . Slashing Weapon . | . . Piercing Weapon . | . . Special Melee Weapon . | . . Unidentified Prototypes . | . . Parts Lost 8 | . 8 Power 1 | . 1 Propulsion 2 | . 2 Utility 1 | . 1 Weapon 4 | . 4 Highest Loss Streak 8 | . 8 To Critical Strikes . | . . Average Slot Usage (%) 90 | . 90 Engine 11 | . 11 Leg 24 | . 24 Device 13 | . 13 Storage 14 | . 14 Energy Gun 2 | . 2 Ballistic Gun 22 | . 22 Peak Build Rating 9 | 9 9 Average Rating 6 | 5 7 On Entrance 4 | . 9 Naked Turns . | . . Heaviest Build 8 | 8 8 Greatest Support 20 | 20 20 Greatest Overweight (x) . | . . Average Overweight (x) . | . . Largest Inventory Capacity 5 | 5 5 Average Capacity 5 | 5 5 Most Carried 5 | 5 5 Average Carried 3 | 3 4 Final Capacity 5 | 5 5 Final Carried 5 | 5 3 Class Distribution -------------------- 100% | Mutant Dominant Class ---------------- Mutant | -10/Materials Resources | -11 -10 ----------- Run | Yrd Mat Matter Collected 479 | 421 58 Remotely . | . . Salvage Created 243 | 80 163 Parts 25 | 12 13 Haulers Intercepted . | . . Recyclers Shooed 3 | . 3 Parts Field Recycled . | . . Retrieved Matter . | . . Parts Self-Destructed . | . . Prevented . | . . Kills | -11 -10 ------- Run | Yrd Mat Combat Hostiles Destroyed 7 | 1 6 Guns 7 | 1 6 Classes Destroyed 4 | 3 1 Worker 1 | 1 . Tunneler 2 | 2 . Swarmer 3 | . 3 Grunt 4 | 1 3 Best Kill Streak 4 | 3 4 Combat Bots Only 4 | 1 4 Max Kills in Single Turn 1 | 1 1 Gunslinging . | . . Exploded . | . . Melee . | . . Uniques/NPCs Destroyed . | . . Combat | -11 -10 -------- Run | Yrd Mat Hostile Shots Fired 81 | 2 79 Missed 12 | 1 11 Damage Taken 858 | 12 846 Core 265 | . 265 Absorbed by Shields . | . . Core Remaining (%) 100 | 100 . Volleys Fired 51 | 11 40 Largest 2 | 2 2 Hottest 60 | 60 60 Shots Fired 92 | 22 70 Gun 92 | 22 70 Cannon . | . . Launcher . | . . Special . | . . Kinetic 71 | 11 60 Thermal 21 | 11 10 Explosive . | . . Electromagnetic . | . . Robot Hit Streak 8 | 3 8 Robot Miss Streak 5 | 2 5 Penetration Max . | . . Secondary Targets . | . . Shots Hit Robots 58 | 12 46 Core Hits 22 | 5 17 Critical Kills . | . . Critical Parts Destroyed . | . . Critical Strikes . | . . Melee Attacks . | . . Impact . | . . Slashing . | . . Piercing . | . . Sneak Attacks . | . . Combat Hostiles . | . . Follow-up Attacks . | . . Damage Inflicted 533 | 132 401 Guns 533 | 132 401 Cannons . | . . Explosions . | . . Melee . | . . Ramming . | . . Kinetic 335 | 31 304 Thermal 198 | 101 97 Explosive . | . . Electromagnetic . | . . Impact . | . . Slashing . | . . Piercing . | . . Highest Corruption . | . . Average Corruption . | . . Corruption Purged . | . . Corruption Blocked . | . . Overload Shots . | . . Overflow Damage . | . . Projectiles . | . . Explosions . | . . Melee . | . . Knockbacks . | . . Impact . | . . Kinetic . | . . Secondary . | . . Self-Inflicted Damage . | . . Shots . | . . Rammed . | . . Targets Rammed . | . . Kicked . | . . Crushed . | . . Highest Temperature 87 | 40 87 Average Temperature 36 | 18 46 Received Heat Transfer 426 | 6 420 Siege Activations . | . . Robots Corrupted . | . . Combat Hostiles . | . . Parts Fried . | . . Impact Corruptions . | . . Robots Melted . | . . Combat Hostiles . | . . Parts Melted . | . . Heat Transferred 450 | 225 225 Parts Sabotaged . | . . Parts Stolen . | . . Parts Stripped . | . . Power Chain Reactions . | . . Alert | -11 -10 ------- Run | Yrd Mat Peak Influence 132 | 35 132 Initial 22 | . 22 Average 46 | 12 72 Maximum Alert Level . | . . Low Security (%) 100 | 100 100 Level 1 . | . . Level 2 . | . . Level 3 . | . . Level 4 . | . . Level 5 . | . . High Security . | . . Max Security . | . . Squads Dispatched 1 | . 1 Investigation . | . . Extermination . | . . Reinforcement 1 | . 1 Assault . | . . Garrison . | . . Intercept . | . . Searches Triggered . | . . Construction Impeded . | . . Haulers Reinforced . | . . Active Scanning Responses . | . . Cargo Convoy Interrupts . | . . Stealth | -11 -10 --------- Run | Yrd Mat Distress Signals 3 | . 3 Communications Jammed . | . . Distress Signals . | . . Times Spotted 12 | 1 11 Peak Tracking Total 8 | 1 8 Tactical Retreats . | . . Traps | -11 -10 ------- Run | Yrd Mat Traps Triggered . | . . Indirectly . | . . Trap Hack Attempts . | . . Triggered . | . . Disarmed . | . . Reprogrammed . | . . Reused . | . . Traps Extracted . | . . Installed . | . . Triggered . | . . Machines | -11 -10 ---------- Run | Yrd Mat Machines Disabled . | . . Max in Single Turn . | . . Machines Repaired . | . . Machines Dismantled . | . . Machines Sabotaged . | . . Overloaded Fab Kills . | . . Hacking | -11 -10 --------- Run | Yrd Mat Machines Accessed 1 | . 1 Terminals . | . . Fabricators . | . . Repair Stations . | . . Recycling Units 1 | . 1 Scanalyzers . | . . Garrison Access . | . . Total Hacks 2 | . 2 Successful 2 | . 2 Failed . | . . Catastrophic . | . . Database Lockouts . | . . Manual . | . . Terminals . | . . Fabricators . | . . Repair Stations . | . . Recycling Units 2 | . 2 Scanalyzers . | . . Garrison Access . | . . Terminal Hacks . | . . Fabricator Hacks . | . . Repair Station Hacks . | . . Recycling Unit Hacks 2 | . 2 Process 1 | . 1 Report Inventory 1 | . 1 Scanalyzer . | . . Garrison Access Hacks . | . . Unauthorized Hacks . | . . Terminals . | . . Fabricators . | . . Repair Stations . | . . Recycling Units . | . . Scanalyzers . | . . Garrison Access . | . . Data Cores Recovered . | . . Used . | . . Hacking Detections . | . . Full Trace Events . | . . Feedback Events . | . . Feedback Blocked . | . . Robot Schematics Acquired . | . . Robots Built . | . . Authchips . | . . Time . | . . Total Robot Build Rating . | . . Part Schematics Acquired . | . . Parts Built . | . . Authchips . | . . Time . | . . Total Part Build Rating . | . . Parts Repaired . | . . Time . | . . Parts Recycled . | . . Recycled Matter . | . . Retrieved Matter . | . . Retrieved Components . | . . Parts Scanalyzed . | . . Part Schematics Acquired . | . . Parts Damaged . | . . Bothacking | -11 -10 ------------ Run | Yrd Mat Used RIF Installer . | . . Robots Hacked . | . . Non-combat . | . . Combat . | . . Robot Hacks Applied . | . . Relay Couplers Released . | . . Fabnet Peak Effective % . | . . Robots Rewired . | . . Allies Hacked . | . . Hacks Repelled . | . . Allies | -11 -10 -------- Run | Yrd Mat Total Allies . | . . Largest Group . | . . Highest-Rated Group . | . . Highest-Rated Ally . | . . Total Orders . | . . Ally Attacks . | . . Total Damage . | . . Kills . | . . Allies Corrupted . | . . Allies Melted . | . . Intel | -11 -10 ------- Run | Yrd Mat Robot Analysis Total . | . . Derelict Logs Recovered . | . . Drone Launches . | . . Drone Recoveries . | . . Exploration | -11 -10 ------------- Run | Yrd Mat Turns Passed 330 | 142 188 Spaces Moved 145 | 81 64 Core 24 | 24 . Treads . | . . Legs 121 | 57 64 Wheels . | . . Hover . | . . Flight . | . . Fastest Speed 50 | 50 120 Average Speed 108 | 99 120 Slowest Speed 120 | 120 120 Overloaded Moves . | . . Propulsion Burnouts . | . . Robots Hopped . | . . Cave-ins Triggered . | . . Exploration Rate (%) 11 | 7 16 Regions Visited 1 Branch Regions . Pre-discovered Areas . | . . Known Exits Taken . | . . Unknown Exits Taken 1 | 1 . Scrap Searched . | . . Spaces Dug . | . . Terrain Destroyed . | . . Melee . | . . Projectile . | . . AOE . | . . Terrain Rammed . | . . Walls Destroyed . | . . Machines Disabled . | . . Actions | -11 -10 --------- Run | Yrd Mat Total 239 | 121 118 Wait 9 | 3 6 Move 144 | 80 64 Hop . | . . Pick Up 14 | 12 2 Fast Attach 4 | 4 . Attach 5 | 3 2 Detach . | . . Swap 6 | 4 2 Drop 6 | 4 2 Fire 51 | 11 40 Melee . | . . Ram . | . . Kick . | . . Crush . | . . Escape Stasis . | . . Rewire . | . . Trap . | . . Miscellaneous . | . . Route ------- -11/Scrapyard -10/Materials History --------- Turn | Location | Event 2 | -11/Scrapyard | Met Revision 17 87 | -11/Scrapyard | Discovered new exit (range 8) 143 | -11/Scrapyard | Entered Materials 312 | -10/Materials | Core integrity fell below 50% 321 | -10/Materials | Core integrity fell below 20% 331 | -10/Materials | Destroyed by G-47 Trooper with Particle Gun Last Messages --------------- R-06 Scavenger collects Lgt. Nuclear Core. Aluminum Leg destroyed. Lgt. Ion Engine destroyed. S-10 Pest destroyed. R-06 Scavenger collects Flight Unit. You may prefer to play using a different font style. Try some of the others via the option menu's second option. Lgt. Assault Rifle destroyed. Sml. Laser destroyed. Aluminum Leg destroyed. S-10 Pest destroyed. R-06 Scavenger collects Flight Unit. S-10 Pest destroyed. R-06 Scavenger collects Lgt. Assault Rifle. Critical hit (Burn: +37). Seismic Detector destroyed. R-06 Scavenger collects Lgt. Ion Engine. R-06 Scavenger collects Flight Unit. Sml. Laser destroyed. Map ----- +----------------------------------------------------+ | ?????????????????????????????????????????????????? | | ?????????????????????????????????????????????????? | | ?????????????????????????????????????????????????? | | ?????????????????????????????????????????????????? | | ?????????????????????????????????????????????????? | | ?????????????????????????????????????????????????? | | ?????????????????????????????????????????????????? | | ?????????????????????????????????????????????????? | | ?????????????????????????????????????????????????? | | ?????????????????????????????????????????????????? | | ?????????????????????????????????????????????????? | | ?????????????????????????????????????????????????? | | ?????????????????????????????????????????????????? | | ?????????????????????????????????????????????????? | | ?????????????????????????????????????????????????? | | ?????????????????????????????????????????????????? | | ?????????????????????????????????????????????????? | | ?????????????????????????????????????????????????? | | ?????????????????????????????????????????????????? | | ?????????????????????????????????????????????????? | | ?????????????????###+######??????????????????????? | | ?????????????????# =#?????? ??????????????? | | ?????????????????# """*#????""" ??????????????? | | ?????????????????# """%#?? """ ??????????????? | | ???????????????#?# """%# g """ ??????????? | | ?????????????????# r%@/% ????????? | | ?????????????????# r""" # g ????????? | | ?????????????????# """ #?? ######???????????? | | ?????????????????# """ #???? #????????????????? | | ?????????????????# t #?? ???????????????????? | | ?????????????????##+########?????????????????????? | | ??????????????????# ## #?????????????????????? | | ???????#??#?#?????# ## #?????????????????????? | | ??????????# ????#?# ## #?????????????????????? | | ???????#??# #####?#%## #?????????????????????? | | ?????????## ### ## """ #?????????????????????? | | ??????????# # """ #?????????????????????? | | ??????????# T / """ #?????????????????????? | | ??????????# # # ? ??????????????????? | | ??????????# #### # "" #?????????????????????? | | ????#?????## ##??# # "Y #?????????????????????? | | ??#????????# #???# # "" #?????????????????????? | | ???????????# #??## # #?????????????????????? | | ???????????# #####+#######?????????????????????? | | ???????????# # #???????????????????????? | | ???????????# # #???????????????????????? | | ???????????# # #???????????????????????? | | ???????????# + """" ##??????????????????????? | | ???????????# # """" #???? ??????????????????? | | ????????#??# # """" #???????????????????????? | +----------------------------------------------------+ Best States ------------- Heat Dissipation 25 Energy Generation 10 Energy Capacity 125 Matter Stores 400 Matter Capacity 400 Sight Range 16 Terrain Scan Range 16 Terrain Scan Density 10 Evasion (%) 55 Item Schematics ----------------- None Robot Schematics ------------------ None Fabricated ------------ Nothing Alien Tech Used ----------------- None Achievements -------------- None Challenges ------------ None Game ------ Seed ImprovedPrecisionScreen Manual? 0 Play Time 00:35:11 Cumulative 0.5 hours Start 2024.08.29 @ 08:40:57 End 2024.08.29 @ 09:30:44 Sessions 1 Manual Loads 0 Difficulty Rogue Special Mode None Game No. 1 Rogue 1 Adventurer 0 Explorer 0 Win Type - Total 0 Types 0/0/0/0/0/0/0/0/0 Lore% 0 Gallery% 0 Achievement% 30 Wizard Run 0 Options --------- Layout 1 ASCII 0 Keyboard 0 Movement Mouse Keybinds 0 Fullscreen 1 Font 20/SmallcapsGlow Map View 27x21 Zoom Use 53% Tactical HUD 0 Map Filters NONE Filters NONE Steam 1 RUN: fe45567f-f6f7-42ee-9bc0-68566117abd0